Workbook

Sheet Лист1
CX35: ^2 | CY35: -130,53040368325614 + 1,934946623574932*cs61 - 0,005376681647194259*cs61^2
CX36: ^3 | CY36: -129,0420198662462 + 1,9051987261019185*cs61 - 0,005196760993224617*cs61^2 - 3,3592096259045*^-7*cs61^3
CX37: ^4 | CY37: -130,5161039803445 + 1,9450233923568874*cs61 - 0,00557289635449117*cs61^2 + 1,1461326781549673*^-6*cs61^3 - 2,0751471044820328*^-9*cs61^4
CX38: ^5 | CY38: -113,2817556861726 + 1,3598479029314245*cs61 + 0,0019533237174289807*cs61^2 - 0,00004483860782102554*cs61^3 + 1,3206373032801122*^-7*cs61^4 - 1,502500604816498*^-10*cs61^5
CX39: ^6 | CY39: 227,7103052686521 - 12,561701230033849*cs61 + 0,22856378116788534*cs61^2 - 0,00193072616422429*cs61^3 + 8,618602167745391*^-6*cs61^4 - 1,979441535584166*^-8*cs61^5 + 1,833544501664083*^-11*cs61^6
CX40: ^7 | CY40: 220,47201017968405 - 12,21690639475257*cs61 + 0,22177858250840893*cs61^2 - 0,0018591419639438394*cs61^3 + 8,18059225164256*^-6*cs61^4 - 1,8236748797589942*^-8*cs61^5 + 1,5347577216464446*^-11*cs61^6 + 2,3902843866550833*^-15*cs61^7
CX41: ^8 | CY41: 286,8668229968738 - 15,82713195610406*cs61 + 0,3050200857221207*cs61^2 - 0,0029228985949169184*cs61^3 + 0,00001643024935750644*cs61^4 - 5,804970228315143*^-8*cs61^5 + 1,3229528441797575*^-10*cs61^6 - 1,8909751010171636*^-13*cs61^7 + 1,340336549397776*^-16*cs61^8
CX42: ^9 | CY42: 165,40740460310153 - 8,412821432953963*cs61 + 0,10923055400801959*cs61^2 + 0,00001409039420427946*cs61^3 - 0,000011171288524237126*cs61^4 + 1,1064158880978404*^-7*cs61^5 - 5,389192607569591*^-10*cs61^6 + 1,4895751933419268*^-12*cs61^7 - 2,2634086427061468*^-15*cs61^8 + 1,4915867481720126*^-18*cs61^9
CX43: ^10 | CY43: -1275,6724044191492 + 89,05300492035353*cs61 - 2,787797740422166*cs61^2 + 0,04986744434922161*cs61^3 - 0,0005615044390328185*cs61^4 + 4,185557170124667*^-6*cs61^5 - 2,105124585410781*^-8*cs61^6 + 7,086451355592575*^-11*cs61^7 - 1,5327540162525736*^-13*cs61^8 + 1,9271515752910467*^-16*cs61^9 - 1,0706852406568329*^-19*cs61^10
CX44: ^11 | CY44: -1303,4699230887927 + 91,11417187369801*cs61 - 2,8558300869437003*cs61^2 + 0,05118726393073067*cs61^3 - 0,0005782324985609457*cs61^4 + 4,33107599983401*^-6*cs61^5 - 2,1938334831535776*^-8*cs61^6 + 7,465657491349619*^-11*cs61^7 - 1,644228449918331*^-13*cs61^8 + 2,1419321702812793*^-16*cs61^9 - 1,3149718768725322*^-19*cs61^10 + 1,2434760373956732*^-23*cs61^11
CX45: ^12 | CY45: -2606,8252779070713 + 196,10909944579055*cs61 - 6,660936086418185*cs61^2 + 0,1332414248130762*cs61^3 - 0,0017512355375719222*cs61^4 + 0,000016046768697696776*cs61^5 - 1,0580598021880291*^-7*cs61^6 + 5,084443895575197*^-10*cs61^7 - 1,77422423244642*^-12*cs61^8 + 4,396697114371803*^-15*cs61^9 - 7,357345639846935*^-18*cs61^10 + 7,470011442696117*^-21*cs61^11 - 3,4792314970748055*^-24*cs61^12
CX46: ^13 | CY46: -1735,9832500502164 + 120,38939634179043*cs61 - 3,6725002746285353*cs61^2 + 0,06234104496970149*cs61^3 - 0,0006227766039394369*cs61^4 + 3,318921500079641*^-6*cs61^5 - 1,1066426769321076*^-9*cs61^6 - 1,2779057399044*^-10*cs61^7 + 1,0830917275731632*^-12*cs61^8 - 4,973814325630872*^-15*cs61^9 + 1,446481699014012*^-17*cs61^10 - 2,67201169161656*^-20*cs61^11 + 2,883755732377097*^-23*cs61^12 - 1,392425160214607*^-26*cs61^13
CX47: ^14 | CY47: 4648,985088857714 - 473,52020934202784*cs61 + 21,59373097417704*cs61^2 - 0,5893939108550156*cs61^3 + 0,010767745535245076*cs61^4 - 0,00013940677487499578*cs61^5 + 1,3215342357222406*^-6*cs61^6 - 9,33958058649974*^-9*cs61^7 + 4,9553193573941944*^-11*cs61^8 - 1,9678450976012656*^-13*cs61^9 + 5,766281550854758*^-16*cs61^10 - 1,210424503199853*^-18*cs61^11 + 1,7222236593102155*^-21*cs61^12 - 1,4877298378865671*^-24*cs61^13 + 5,889777713532832*^-28*cs61^14
CX48: ^15 | CY48: 2271,6907532947967 - 236,80173397334892*cs61 + 10,74183467106547*cs61^2 - 0,2855208726444771*cs61^3 + 0,004954107354646077*cs61^4 - 0,000058893814374217455*cs61^5 + 4,87528071678448*^-7*cs61^6 - 2,757927300166774*^-9*cs61^7 + 9,647324333917435*^-12*cs61^8 - 1,0835224957922114*^-14*cs61^9 - 8,402457239969748*^-17*cs61^10 + 5,476283208331487*^-19*cs61^11 - 1,6707250195954992*^-21*cs61^12 + 2,997039568479893*^-24*cs61^13 - 3,04246384936468*^-27*cs61^14 + 1,3583462043734845*^-30*cs61^15
CX49: ^16 | CY49: 879,0989271244755 - 103,65418188796012*cs61 + 4,934511873144558*cs61^2 - 0,1327105283434217*cs61^3 + 0,002254049570571947*cs61^4 - 0,000025227795619110834*cs61^5 + 1,8590378712666816*^-7*cs61^6 - 8,387793416638382*^-10*cs61^7 + 1,5515009595381004*^-12*cs61^8 + 5,442686052227567*^-15*cs61^9 - 3,931130044159314*^-17*cs61^10 + 4,3647980730294594*^-20*cs61^11 + 4,2336642151045134*^-22*cs61^12 - 2,2531818531197405*^-24*cs61^13 + 5,242483738612398*^-27*cs61^14 - 6,276997640730973*^-30*cs61^15 + 3,1536456922518804*^-33*cs61^16
CX50: ^17 | CY50: 57,324971735902594 - 27,892491168287314*cs61 + 1,774490613437991*cs61^2 - 0,05408315550330109*cs61^3 + 0,0009612794485582169*cs61^4 - 0,000010592061845867001*cs61^5 + 7,169446572382204*^-8*cs61^6 - 2,5749872471630103*^-10*cs61^7 + 5,258722589174285*^-14*cs61^8 + 3,396693479703093*^-15*cs61^9 - 8,465198180644*^-18*cs61^10 - 3,1321101898255637*^-20*cs61^11 + 1,7260039424138597*^-22*cs61^12 + 1,2332546570326155*^-25*cs61^13 - 2,8728601196533498*^-27*cs61^14 + 9,120251046347766*^-30*cs61^15 - 1,29710120252299*^-32*cs61^16 + 7,328004302773014*^-36*cs61^17
CX51: ^18 | CY51: -426,551897007548 + 15,279788837133461*cs61 + 0,044792199838533144*cs61^2 - 0,013165942439982887*cs61^3 + 0,00033121207574594467*cs61^4 - 4,068905844847759*^-6*cs61^5 + 2,7143513662461022*^-8*cs61^6 - 7,958498505675166*^-11*cs61^7 - 1,1947117895937938*^-13*cs61^8 + 1,3922611062039115*^-15*cs61^9 - 3,609412846141631*^-19*cs61^10 - 1,9004678879851255*^-20*cs61^11 + 1,7358033162727273*^-23*cs61^12 + 2,5789314141977944*^-25*cs61^13 - 4,5104828740210825*^-28*cs61^14 - 3,238945628362848*^-30*cs61^15 + 1,5534086240270192*^-32*cs61^16 - 2,6564000475259467*^-35*cs61^17 + 1,6893497613160524*^-38*cs61^18
CX52: ^19 | CY52: -706,8349709472883 + 39,558430093412895*cs61 - 0,8931924792232022*cs61^2 + 0,008028712077543557*cs61^3 + 0,000023827202446121364*cs61^4 - 1,1407695996155965*^-6*cs61^5 + 9,588275250430953*^-9*cs61^6 - 2,6577643363741957*^-11*cs61^7 - 7,461976198686153*^-14*cs61^8 + 5,057044503712225*^-16*cs61^9 + 7,133070058047729*^-19*cs61^10 - 7,212407238054235*^-21*cs61^11 - 1,1636118555375759*^-23*cs61^12 + 9,627047452559522*^-26*cs61^13 + 2,0563878840340985*^-28*cs61^14 - 1,3483262293191675*^-30*cs61^15 - 2,6436418500041548*^-33*cs61^16 + 2,5245747536982937*^-35*cs61^17 - 5,303083320101512*^-38*cs61^18 + 3,8117568962202667*^-41*cs61^19
CX53: ^20 | CY53: -862,7670607229118 + 52,70877454826775*cs61 - 1,3847682841304259*cs61^2 + 0,018682665513383018*cs61^3 - 0,00012242061855629365*cs61^4 + 1,4792381484681844*^-7*cs61^5 + 2,796566367075725*^-9*cs61^6 - 1,2133636331595945*^-11*cs61^7 - 2,6485028418925447*^-14*cs61^8 + 1,975330137635624*^-16*cs61^9 + 4,2483382985007906*^-19*cs61^10 - 2,4869235696444997*^-21*cs61^11 - 8,62719445444336*^-24*cs61^12 + 2,3313315053147384*^-26*cs61^13 + 1,532773600895975*^-28*cs61^14 - 1,1975298864790804*^-31*cs61^15 - 2,3486856591809856*^-33*cs61^16 + 2,5492286345036367*^-37*cs61^17 + 3,7198321516174725*^-38*cs61^18 - 1,0018108003275048*^-40*cs61^19 + 8,223367702985948*^-44*cs61^20
CX54: ^21 | CY54: -942,086644848266 + 59,23752750743197*cs61 - 1,6216155775137422*cs61^2 + 0,023624233398886807*cs61^3 - 0,0001869071702259428*cs61^4 + 6,76022410404157*^-7*cs61^5 + 3,504033241404163*^-10*cs61^6 - 8,996769596422556*^-12*cs61^7 - 1,2054742324009215*^-15*cs61^8 + 1,1206009874913262*^-16*cs61^9 + 1,3373475772209868*^-19*cs61^10 - 1,209314793048761*^-21*cs61^11 - 3,943699786489838*^-24*cs61^12 + 7,19819295064363*^-27*cs61^13 + 6,731832740020234*^-29*cs61^14 + 6,081171860504256*^-32*cs61^15 - 7,674205013021402*^-34*cs61^16 - 2,4279221485300116*^-36*cs61^17 + 7,062170473722745*^-39*cs61^18 + 4,3090690370763025*^-41*cs61^19 - 1,6745807280970541*^-43*cs61^20 + 1,6155718312361626*^-46*cs61^21
CX55: ^22 | CY55: -974,0740569753997 + 61,81283982840491*cs61 - 1,712525016552237*cs61^2 + 0,025456091792044378*cs61^3 - 0,0002097222356495882*cs61^4 + 8,503881204167595*10^-7*cs61^5 - 3,5823393171761096*10^-10*cs61^6 - 8,672665057753797*10^-12*cs61^7 + 7,782268865369579*10^-15*cs61^8 + 9,660249751656043*10^-17*cs61^9 + 1,3240446987562582*10^-20*cs61^10 - 1,0248284192075756*10^-21*cs61^11 - 2,0581758221349453*10^-24*cs61^12 + 6,706367905234249*10^-27*cs61^13 + 3,8300816277772304*10^-29*cs61^14 + 2,2188760699917885*10^-32*cs61^15 - 3,656983243422924*10^-34*cs61^16 - 1,1792803111779983*10^-36*cs61^17 + 1,2434804689533443*10^-39*cs61^18 + 1,619443189336767*10^-41*cs61^19 + 1,229079829009264*10^-44*cs61^20 - 1,9532968575349412*10^-46*cs61^21 + 2,5071516555587976*10^-49*cs61^22
CS60: x | CT60: y=ax^2+bx | CU60: ax^3+bx^2+cx+d | CV60: ax^4+bx^3+cx^2+dx+e | CW60: ax^5+bx^4+cx^3+dx^2+ex+f | CX60: ax^6+bx^5+cx^4+dx^3+ex^2+fx+g | CY60: ax^7+bx^6+cx^5+dx^4+ex^3+fx^2+gx+h | CZ60: ax^8+bx^7+cx^6+dx^5+ex^4+fx^3+gx^2+hx+i
CM61: -12.04052079 | CQ61: 77.67050383 | CS61: -260 | CT61: =-130.53+1.93495*CS61-0.00537668*CS61^2 -> -997.080568 | CU61: =-129.042+1.9052*CS61-0.00519676*CS61^2-3.35921*10^-7*CS61^3 -> -969.7908285 | CV61: =-130.516+1.94502*CS61-0.0055729*CS61^2+1.14613*10^-6*CS61^3-2.07515*10^-9*CS61^4 -> -1042.576558 | CW61: =-113.282+1.35985*CS61+0.00195332*CS61^2-0.0000448386*CS61^3+1.32064*10^-7*CS61^4-1.5025*10^-10*CS61^5 -> 1235.303125 | CX61: =227.71-12.5617*CS61+0.228564*CS61^2-0.00193073*CS61^3+8.6186*10^-6*CS61^4-1.97944*10^-8*CS61^5+1.83354*10^-11*CS61^6 -> 121446.6876 | CZ61: =286.867-15.8271*CS61+0.30502*CS61^2-0.0029229*CS61^3+0.0000164302*CS61^4-5.80497*10^-8*CS61^5+1.32295*10^-10*CS61^6-1.89098*10^-13*CS61^7+1.34034*10^-16*CS61^8 -> 279302.2551
CM62: -1.797355147 | CQ62: 88.78048115 | CS62: =CS61+10 -> -250 | CT62: =-130.53+1.93495*CS62-0.00537668*CS62^2 -> -950.31 | CU62: =-129.042+1.9052*CS62-0.00519676*CS62^2-3.35921*10^-7*CS62^3 -> -924.8907344 | CV62: =-130.516+1.94502*CS62-0.0055729*CS62^2+1.14613*10^-6*CS62^3-2.07515*10^-9*CS62^4 -> -991.0915859 | CW62: =-113.282+1.35985*CS62+0.00195332*CS62^2-0.0000448386*CS62^3+1.32064*10^-7*CS62^4-1.5025*10^-10*CS62^5 -> 1032.044641 | CX62: =227.71-12.5617*CS62+0.228564*CS62^2-0.00193073*CS62^3+8.6186*10^-6*CS62^4-1.97944*10^-8*CS62^5+1.83354*10^-11*CS62^6 -> 105294.3323 | CZ62: =286.867-15.8271*CS62+0.30502*CS62^2-0.0029229*CS62^3+0.0000164302*CS62^4-5.80497*10^-8*CS62^5+1.32295*10^-10*CS62^6-1.89098*10^-13*CS62^7+1.34034*10^-16*CS62^8 -> 235732.7399
CM63: 8.488770587 | CQ63: 99.7875736 | CS63: =CS62+10 -> -240 | CT63: -904.614768 | CU63: -880.9796041 | CV63: -941.0487908 | CW63: 850.5091206 | CX63: 90958.14821 | CZ63: =286.867-15.8271*CS63+0.30502*CS63^2-0.0029229*CS63^3+0.0000164302*CS63^4-5.80497*10^-8*CS63^5+1.32295*10^-10*CS63^6-1.89098*10^-13*CS63^7+1.34034*10^-16*CS63^8 -> 198225.2238
CM64: 18.42563007 | CQ64: 111.415109 | CS64: -230 | CT64: -859.994872 | CU64: -838.0594532 | CV64: -892.4290942 | CW64: 689.109646 | CX64: 78272.15696 | CZ64: =286.867-15.8271*CS64+0.30502*CS64^2-0.0029229*CS64^3+0.0000164302*CS64^4-5.80497*10^-8*CS64^5+1.32295*10^-10*CS64^6-1.89098*10^-13*CS64^7+1.34034*10^-16*CS64^8 -> 166039.2945
CM65: 27.54637119 | CQ65: 124.4316517 | CS65: -220 | CT65: -816.450312 | CU65: -796.1322972 | CV65: -845.2139156 | CW65: 546.3342654 | CX65: 67081.95347 | CZ65: =286.867-15.8271*CS65+0.30502*CS65^2-0.0029229*CS65^3+0.0000164302*CS65^4-5.80497*10^-8*CS65^5+1.32295*10^-10*CS65^6-1.89098*10^-13*CS65^7+1.34034*10^-16*CS65^8 -> 138512.1432
CM66: 35.22321723 | CQ66: 139.6184416 | CS66: -210 | CT66: -773.981088 | CU66: -755.2001516 | CV66: -799.3851724 | CW66: 420.744192 | CX66: 57244.15841 | CZ66: =286.867-15.8271*CS66+0.30502*CS66^2-0.0029229*CS66^3+0.0000164302*CS66^4-5.80497*10^-8*CS66^5+1.32295*10^-10*CS66^6-1.89098*10^-13*CS66^7+1.34034*10^-16*CS66^8 -> 115051.8242
CM67: 40.62707791 | CQ67: 157.4586666 | CS67: -200 | CT67: -732.5872 | CU67: -715.265032 | CV67: -754.92528 | CW67: 310.972 | CX67: 48625.8836 | CZ67: =286.867-15.8271*CS67+0.30502*CS67^2-0.0029229*CS67^3+0.0000164302*CS67^4-5.80497*10^-8*CS67^5+1.32295*10^-10*CS67^6-1.89098*10^-13*CS67^7+1.34034*10^-16*CS67^8 -> 95130.97244
CM68: 42.8811091 | CQ68: 177.4418964 | CS68: -190 | CT68: -692.268648 | CU68: -676.3289539 | CV68: -711.8171519 | CW68: 215.7198223 | CX68: 41104.21063 | CZ68: =286.867-15.8271*CS68+0.30502*CS68^2-0.0029229*CS68^3+0.0000164302*CS68^4-5.80497*10^-8*CS68^5+1.32295*10^-10*CS68^6-1.89098*10^-13*CS68^7+1.34034*10^-16*CS68^8 -> 78280.95635
CM69: 41.51312336 | CQ69: 197.7094719 | CS69: -180 | CT69: -653.025432 | CU69: -638.3939327 | CV69: -670.0441996 | CW69: 133.757547 | CX69: 34565.68271 | CZ69: =286.867-15.8271*CS69+0.30502*CS69^2-0.0029229*CS69^3+0.0000164302*CS69^4-5.80497*10^-8*CS69^5+1.32295*10^-10*CS69^6-1.89098*10^-13*CS69^7+1.34034*10^-16*CS69^8 -> 64086.44605
CM70: 36.81847376 | CQ70: 216.1870165 | CS70: -170 | CT70: -614.857552 | CU70: -601.4619841 | CV70: -629.5903327 | CW70: 63.92101466 | CX70: 28905.80972 | CZ70: =286.867-15.8271*CS70+0.30502*CS70^2-0.0029229*CS70^3+0.0000164302*CS70^4-5.80497*10^-8*CS70^5+1.32295*10^-10*CS70^6-1.89098*10^-13*CS70^7+1.34034*10^-16*CS70^8 -> 52180.37511
CM71: 29.62370109 | CQ71: 232.0145925 | CS71: -160 | CT71: -577.765008 | CU71: -565.5351236 | CV71: -590.4399588 | CW71: 5.11021504 | CX71: 24028.58642 | CZ71: =286.867-15.8271*CS71+0.30502*CS71^2-0.0029229*CS71^3+0.0000164302*CS71^4-5.80497*10^-8*CS71^5+1.32295*10^-10*CS71^6-1.89098*10^-13*CS71^7+1.34034*10^-16*CS71^8 -> 42239.27653
CM72: 20.79614588 | CQ72: 245.5020817 | CS72: -150 | CT72: -541.7478 | CU72: -530.6153666 | CV72: -552.5779834 | CW72: -43.71251562 | CX72: 19846.02392 | CZ72: =286.867-15.8271*CS72+0.30502*CS72^2-0.0029229*CS72^3+0.0000164302*CS72^4-5.80497*10^-8*CS72^5+1.32295*10^-10*CS72^6-1.89098*10^-13*CS72^7+1.34034*10^-16*CS72^8 -> 33978.97319
CM73: 11.0141479 | CQ73: 257.4015321 | CS73: -140 | CT73: -506.805928 | CU73: -496.7047288 | CV73: -515.9898103 | CW73: -83.52429776 | CX73: 16277.69429 | CZ73: =286.867-15.8271*CS73+0.30502*CS73^2-0.0029229*CS73^3+0.0000164302*CS73^4-5.80497*10^-8*CS73^5+1.32295*10^-10*CS73^6-1.89098*10^-13*CS73^7+1.34034*10^-16*CS73^8 -> 27150.6038
CM74: 0.7769642153 | CQ74: 268.4945761 | CS74: -130 | CT74: -472.939392 | CU74: -463.8052256 | CV74: -480.6613412 | CW74: -115.2435114 | CX74: 13250.28845 | CZ74: =286.867-15.8271*CS74+0.30502*CS74^2-0.0029229*CS74^3+0.0000164302*CS74^4-5.80497*10^-8*CS74^5+1.32295*10^-10*CS74^6-1.89098*10^-13*CS74^7+1.34034*10^-16*CS74^8 -> 21536.9659
CM75: -9.512796477 | CQ75: 279.5116524 | CS75: -120 | CT75: -440.148192 | CU75: -431.9188725 | CV75: -446.5789757 | CW75: -139.7315994 | CX75: 10697.18716 | CZ75: =286.867-15.8271*CS75+0.30502*CS75^2-0.0029229*CS75^3+0.0000164302*CS75^4-5.80497*10^-8*CS75^5+1.32295*10^-10*CS75^6-1.89098*10^-13*CS75^7+1.34034*10^-16*CS75^8 -> 16949.15797
CS76: -110 | CT76: -408.432328 | CU76: -401.0476851 | CV76: -413.7296117 | CW76: -157.7948699 | CX76: 8558.045327 | CZ76: =286.867-15.8271*CS76+0.30502*CS76^2-0.0029229*CS76^3+0.0000164302*CS76^4-5.80497*10^-8*CS76^5+1.32295*10^-10*CS76^6-1.89098*10^-13*CS76^7+1.34034*10^-16*CS76^8 -> 13223.50336
CS77: -100 | CT77: -377.7918 | CU77: -371.193679 | CV77: -382.100645 | CW77: -170.1863 | CX77: 6778.3894 | CZ77: =286.867-15.8271*CS77+0.30502*CS77^2-0.0029229*CS77^3+0.0000164302*CS77^4-5.80497*10^-8*CS77^5+1.32295*10^-10*CS77^6-1.89098*10^-13*CS77^7+1.34034*10^-16*CS77^8 -> 10218.73914
CS78: -90 | CT78: -348.226608 | CU78: -342.3588696 | CV78: -351.6799694 | CW78: -177.6073383 | CX78: 5309.228052 | CZ78: =286.867-15.8271*CS78+0.30502*CS78^2-0.0029229*CS78^3+0.0000164302*CS78^4-5.80497*10^-8*CS78^5+1.32295*10^-10*CS78^6-1.89098*10^-13*CS78^7+1.34034*10^-16*CS78^8 -> 7813.453654
CS79: -80 | CT79: -319.736752 | CU79: -314.5452724 | CV79: -322.4559767 | CW79: -180.7097082 | CX79: 4106.676021 | CZ79: =286.867-15.8271*CS79+0.30502*CS79^2-0.0029229*CS79^3+0.0000164302*CS79^4-5.80497*10^-8*CS79^5+1.32295*10^-10*CS79^6-1.89098*10^-13*CS79^7+1.34034*10^-16*CS79^8 -> 5903.756934
CS80: -70 | CT80: -292.322232 | CU80: -287.7549031 | CV80: -294.4175569 | CW80: -180.0972104 | CX80: 3131.591166 | CZ80: =286.867-15.8271*CS80+0.30502*CS80^2-0.0029229*CS80^3+0.0000164302*CS80^4-5.80497*10^-8*CS80^5+1.32295*10^-10*CS80^6-1.89098*10^-13*CS80^7+1.34034*10^-16*CS80^8 -> 4401.168879
CS81: -60 | CT81: -265.983048 | CU81: -261.9897771 | CV81: -267.554098 | CW81: -176.3275266 | CX81: 2349.224718 | CZ81: =286.867-15.8271*CS81+0.30502*CS81^2-0.0029229*CS81^3+0.0000164302*CS81^4-5.80497*10^-8*CS81^5+1.32295*10^-10*CS81^6-1.89098*10^-13*CS81^7+1.34034*10^-16*CS81^8 -> 3230.71046
CS82: -50 | CT82: -240.7192 | CU82: -237.2519099 | CV82: -241.8554859 | CW82: -169.9140219 | CX82: 1728.884741 | CZ82: =286.867-15.8271*CS82+0.30502*CS82^2-0.0029229*CS82^3+0.0000164302*CS82^4-5.80497*10^-8*CS82^5+1.32295*10^-10*CS82^6-1.89098*10^-13*CS82^7+1.34034*10^-16*CS82^8 -> 2329.183859
CS83: -40 | CT83: -216.530688 | CU83: -213.5433171 | CV83: -217.3121047 | CW83: -161.3275482 | CX83: 1243.612784 | CZ83: =286.867-15.8271*CS83+0.30502*CS83^2-0.0029229*CS83^3+0.0000164302*CS83^4-5.80497*10^-8*CS83^5+1.32295*10^-10*CS83^6-1.89098*10^-13*CS83^7+1.34034*10^-16*CS83^8 -> 1643.627942
CS84: -30 | CT84: -193.417512 | CU84: -190.8660141 | CV84: -193.9148364 | CW84: -150.9982469 | CX84: 869.8737464 | CZ84: =286.867-15.8271*CS84+0.30502*CS84^2-0.0029229*CS84^3+0.0000164302*CS84^4-5.80497*10^-8*CS84^5+1.32295*10^-10*CS84^6-1.89098*10^-13*CS84^7+1.34034*10^-16*CS84^8 -> 1129.936036
CS85: -20 | CT85: -171.379672 | CU85: -169.2220166 | CV85: -171.6550611 | CW85: -139.3173522 | CX85: 587.2589315 | CZ85: =286.867-15.8271*CS85+0.30502*CS85^2-0.0029229*CS85^3+0.0000164302*CS85^4-5.80497*10^-8*CS85^5+1.32295*10^-10*CS85^6-1.89098*10^-13*CS85^7+1.34034*10^-16*CS85^8 -> 751.6235034
CS86: -10 | CT86: -150.417168 | CU86: -148.6133401 | CV86: -150.5246569 | CW86: -126.6389937 | CX86: 378.2023138 | CZ86: =286.867-15.8271*CS86+0.30502*CS86^2-0.0029229*CS86^3+0.0000164302*CS86^4-5.80497*10^-8*CS86^5+1.32295*10^-10*CS86^6-1.89098*10^-13*CS86^7+1.34034*10^-16*CS86^8 -> 478.7331412
CS87: 0 | CT87: -130.53 | CU87: -129.042 | CV87: -130.516 | CW87: -113.282 | CX87: 227.71 | CZ87: =286.867-15.8271*CS87+0.30502*CS87^2-0.0029229*CS87^3+0.0000164302*CS87^4-5.80497*10^-8*CS87^5+1.32295*10^-10*CS87^6-1.89098*10^-13*CS87^7+1.34034*10^-16*CS87^8 -> 286.867
CS88: 10 | CT88: -111.718168 | CU88: -110.5100119 | CV88: -111.6219646 | CW88: -99.53170099 | CX88: 123.1028949 | CZ88: =286.867-15.8271*CS88+0.30502*CS88^2-0.0029229*CS88^3+0.0000164302*CS88^4-5.80497*10^-8*CS88^5+1.32295*10^-10*CS88^6-1.89098*10^-13*CS88^7+1.34034*10^-16*CS88^8 -> 156.3337274
CS89: 20 | CT89: -93.981672 | CU89: -93.01939137 | CV89: -93.83592298 | CW89: -85.64173136 | CX89: 53.77256739 | CZ89: =286.867-15.8271*CS89+0.30502*CS89^2-0.0029229*CS89^3+0.0000164302*CS89^4-5.80497*10^-8*CS89^5+1.32295*10^-10*CS89^6-1.89098*10^-13*CS89^7+1.34034*10^-16*CS89^8 -> 71.40110123
CS90: 30 | CT90: -77.320512 | CU90: -76.57215387 | CV90: -77.15174536 | CW90: -71.83583343 | CX90: 10.95031859 | CZ90: =286.867-15.8271*CS90+0.30502*CS90^2-0.0029229*CS90^3+0.0000164302*CS90^4-5.80497*10^-8*CS90^5+1.32295*10^-10*CS90^6-1.89098*10^-13*CS90^7+1.34034*10^-16*CS90^8 -> 19.64394971
CS91: 40 | CT91: -61.734688 | CU91: -61.17031494 | CV91: -61.56380006 | CW91: -58.30966016 | CX91: -12.51054876 | CZ91: =286.867-15.8271*CS91+0.30502*CS91^2-0.0029229*CS91^3+0.0000164302*CS91^4-5.80497*10^-8*CS91^5+1.32295*10^-10*CS91^6-1.89098*10^-13*CS91^7+1.34034*10^-16*CS91^8 -> -8.621800371
CS92: 50 | CT92: -47.2242 | CU92: -46.81589012 | CV92: -47.06695344 | CW92: -45.23257812 | CX92: -22.33925938 | CZ92: =286.867-15.8271*CS92+0.30502*CS92^2-0.0029229*CS92^3+0.0000164302*CS92^4-5.80497*10^-8*CS92^5+1.32295*10^-10*CS92^6-1.89098*10^-13*CS92^7+1.34034*10^-16*CS92^8 -> -20.82766898
CS93: 60 | CT93: -33.789048 | CU93: -33.51089494 | CV93: -33.65656986 | CW93: -32.74947056 | CX93: -23.03889302 | CZ93: =286.867-15.8271*CS93+0.30502*CS93^2-0.0029229*CS93^3+0.0000164302*CS93^4-5.80497*10^-8*CS93^5+1.32295*10^-10*CS93^6-1.89098*10^-13*CS93^7+1.34034*10^-16*CS93^8 -> -22.57194001
CS94: 70 | CT94: -21.429232 | CU94: -21.2573449 | CV94: -21.32851176 | CW94: -20.98254033 | CX94: -18.06451061 | CZ94: =286.867-15.8271*CS94+0.30502*CS94^2-0.0029229*CS94^3+0.0000164302*CS94^4-5.80497*10^-8*CS94^5+1.32295*10^-10*CS94^6-1.89098*10^-13*CS94^7+1.34034*10^-16*CS94^8 -> -17.97738974
CS95: 80 | CT95: -10.144752 | CU95: -10.05725555 | CV95: -10.07913958 | CW95: -10.03311296 | CX95: -9.988078822 | CZ95: =286.867-15.8271*CS95+0.30502*CS95^2-0.0029229*CS95^3+0.0000164302*CS95^4-5.80497*10^-8*CS95^5+1.32295*10^-10*CS95^6-1.89098*10^-13*CS95^7+1.34034*10^-16*CS95^8 -> -9.994525232
CS96: 90 | CT96: 0.064392 | CU96: 0.087357591 | CV96: 0.0946881785 | CW96: 0.016560415 | CX96: -0.6501932486 | CZ96: =286.867-15.8271*CS96+0.30502*CS96^2-0.0029229*CS96^3+0.0000164302*CS96^4-5.80497*10^-8*CS96^5+1.32295*10^-10*CS96^6-1.89098*10^-13*CS96^7+1.34034*10^-16*CS96^8 -> -0.6568907344
CS97: 100 | CT97: 9.1982 | CU97: 9.174479 | CV97: 9.195615 | CW97: 9.1015 | CX97: 8.7014 | CZ97: =286.867-15.8271*CS97+0.30502*CS97^2-0.0029229*CS97^3+0.0000164302*CS97^4-5.80497*10^-8*CS97^5+1.32295*10^-10*CS97^6-1.89098*10^-13*CS97^7+1.34034*10^-16*CS97^8 -> 8.70554
CS98: 110 | CT98: 17.256672 | CU98: 17.20209315 | CV98: 17.22578632 | CW98: 17.17219436 | CX98: 17.28648412 | CZ98: =286.867-15.8271*CS98+0.30502*CS98^2-0.0029229*CS98^3+0.0000164302*CS98^4-5.80497*10^-8*CS98^5+1.32295*10^-10*CS98^6-1.89098*10^-13*CS98^7+1.34034*10^-16*CS98^8 -> 17.28940823
CS99: 120 | CT99: 24.239808 | CU99: 24.16818451 | CV99: 24.18684954 | CW99: 24.19279744 | CX99: 24.68025295 | CZ99: =286.867-15.8271*CS99+0.30502*CS99^2-0.0029229*CS99^3+0.0000164302*CS99^4-5.80497*10^-8*CS99^5+1.32295*10^-10*CS99^6-1.89098*10^-13*CS99^7+1.34034*10^-16*CS99^8 -> 24.67251461
CS100: 130 | CT100: 30.147608 | CU100: 30.07073756 | CV100: 30.07995402 | CW100: 30.13932551 | CX100: 30.71439382 | CZ100: =286.867-15.8271*CS100+0.30502*CS100^2-0.0029229*CS100^3+0.0000164302*CS100^4-5.80497*10^-8*CS100^5+1.32295*10^-10*CS100^6-1.89098*10^-13*CS100^7+1.34034*10^-16*CS100^8 -> 30.69546691
CS101: 140 | CT101: 34.980072 | CU101: 34.90773678 | CV101: 34.9057511 | CW101: 34.99785424 | CX101: 35.39137181 | CZ101: =286.867-15.8271*CS101+0.30502*CS101^2-0.0029229*CS101^3+0.0000164302*CS101^4-5.80497*10^-8*CS101^5+1.32295*10^-10*CS101^6-1.89098*10^-13*CS101^7+1.34034*10^-16*CS101^8 -> 35.36657508
CS102: 150 | CT102: 38.7372 | CU102: 38.67716662 | CV102: 38.66439406 | CW102: 38.76271562 | CX102: 38.81191562 | CZ102: =286.867-15.8271*CS102+0.30502*CS102^2-0.0029229*CS102^3+0.0000164302*CS102^4-5.80497*10^-8*CS102^5+1.32295*10^-10*CS102^6-1.89098*10^-13*CS102^7+1.34034*10^-16*CS102^8 -> 38.78667789
CS103: 160 | CT103: 41.418992 | CU103: 41.37701158 | CV103: 41.35553818 | CW103: 41.43469504 | CX103: 41.11570481 | CZ103: =286.867-15.8271*CS103+0.30502*CS103^2-0.0029229*CS103^3+0.0000164302*CS103^4-5.80497*10^-8*CS103^5+1.32295*10^-10*CS103^6-1.89098*10^-13*CS103^7+1.34034*10^-16*CS103^8 -> 41.09112607
CS104: 170 | CT104: 43.025448 | CU104: 43.00525613 | CV104: 42.97834066 | CW104: 43.01922822 | CX104: 42.43525856 | CZ104: =286.867-15.8271*CS104+0.30502*CS104^2-0.0029229*CS104^3+0.0000164302*CS104^4-5.80497*10^-8*CS104^5+1.32295*10^-10*CS104^6-1.89098*10^-13*CS104^7+1.34034*10^-16*CS104^8 -> 42.40668698
CS105: 180 | CT105: 43.556568 | CU105: 43.55988473 | CV105: 43.5314607 | CW105: 43.52459824 | CX105: 42.86302601 | CZ105: =286.867-15.8271*CS105+0.30502*CS105^2-0.0029229*CS105^3+0.0000164302*CS105^4-5.80497*10^-8*CS105^5+1.32295*10^-10*CS105^6-1.89098*10^-13*CS105^7+1.34034*10^-16*CS105^8 -> 42.82167659
CS106: 190 | CT106: 43.012352 | CU106: 43.03888186 | CV106: 43.01305944 | CW106: 42.96013257 | CX106: 42.43167793 | CZ106: =286.867-15.8271*CS106+0.30502*CS106^2-0.0029229*CS106^3+0.0000164302*CS106^4-5.80497*10^-8*CS106^5+1.32295*10^-10*CS106^6-1.89098*10^-13*CS106^7+1.34034*10^-16*CS106^8 -> 42.36816471
CS107: 200 | CT107: 41.3928 | CU107: 41.440232 | CV107: 41.4208 | CW107: 41.3344 | CX107: 41.1076 | CZ107: =286.867-15.8271*CS107+0.30502*CS107^2-0.0029229*CS107^3+0.0000164302*CS107^4-5.80497*10^-8*CS107^5+1.32295*10^-10*CS107^6-1.89098*10^-13*CS107^7+1.34034*10^-16*CS107^8 -> 41.01564
CS108: 210 | CT108: 38.697912 | CU108: 38.76191962 | CV108: 38.75184746 | CW108: 38.65340772 | CX108: 38.79758754 | CZ108: =286.867-15.8271*CS108+0.30502*CS108^2-0.0029229*CS108^3+0.0000164302*CS108^4-5.80497*10^-8*CS108^5+1.32295*10^-10*CS108^6-1.89098*10^-13*CS108^7+1.34034*10^-16*CS108^8 -> 38.67606162
CS109: 220 | CT109: 34.927688 | CU109: 35.00192919 | CV109: 35.00286886 | CW109: 34.91879824 | CX109: 35.36874172 | CZ109: =286.867-15.8271*CS109+0.30502*CS109^2-0.0029229*CS109^3+0.0000164302*CS109^4-5.80497*10^-8*CS109^5+1.32295*10^-10*CS109^6-1.89098*10^-13*CS109^7+1.34034*10^-16*CS109^8 -> 35.22076494
CS110: 230 | CT110: 30.082128 | CU110: 30.15824519 | CV110: 30.1700332 | CW110: 30.12604647 | CX110: 30.68156725 | CZ110: =286.867-15.8271*CS110+0.30502*CS110^2-0.0029229*CS110^3+0.0000164302*CS110^4-5.80497*10^-8*CS110^5+1.32295*10^-10*CS110^6-1.89098*10^-13*CS110^7+1.34034*10^-16*CS110^8 -> 30.51022889
CS111: 240 | CT111: 24.161232 | CU111: 24.2288521 | CV111: 24.24901146 | CW111: 24.26265664 | CX111: 24.63627159 | CZ111: =286.867-15.8271*CS111+0.30502*CS111^2-0.0029229*CS111^3+0.0000164302*CS111^4-5.80497*10^-8*CS111^5+1.32295*10^-10*CS111^6-1.89098*10^-13*CS111^7+1.34034*10^-16*CS111^8 -> 24.43825331
CS112: 250 | CT112: 17.165 | CU112: 17.21173438 | CV112: 17.23497656 | CW112: 17.30635938 | CX112: 17.23226562 | CZ112: =286.867-15.8271*CS112+0.30502*CS112^2-0.0029229*CS112^3+0.0000164302*CS112^4-5.80497*10^-8*CS112^5+1.32295*10^-10*CS112^6-1.89098*10^-13*CS112^7+1.34034*10^-16*CS112^8 -> 16.99263477
CS113: 260 | CT113: 9.093432 | CU113: 9.104876504 | CV113: 9.122603416 | CW113: 9.22330864 | CX113: 8.64086583 | CZ113: =286.867-15.8271*CS113+0.30502*CS113^2-0.0029229*CS113^3+0.0000164302*CS113^4-5.80497*10^-8*CS113^5+1.32295*10^-10*CS113^6-1.89098*10^-13*CS113^7+1.34034*10^-16*CS113^8 -> 8.334969925
CS114: 270 | CT114: -0.053472 | CU114: -0.093737043 | CV114: -0.0939311215 | CW114: -0.033721235 | CX114: -0.7088020694 | CZ114: =286.867-15.8271*CS114+0.30502*CS114^2-0.0029229*CS114^3+0.0000164302*CS114^4-5.80497*10^-8*CS114^5+1.32295*10^-10*CS114^6-1.89098*10^-13*CS114^7+1.34034*10^-16*CS114^8 -> -1.097244075
CS115: 280 | CT115: -10.275712 | CU115: -10.38612179 | CV115: -10.42094822 | CW115: -10.52713856 | CX115: -10.03069796 | CZ115: =286.867-15.8271*CS115+0.30502*CS115^2-0.0029229*CS115^3+0.0000164302*CS115^4-5.80497*10^-8*CS115^5+1.32295*10^-10*CS115^6-1.89098*10^-13*CS115^7+1.34034*10^-16*CS115^8 -> -10.46250241
CS116: 290 | CT116: -21.573288 | CU116: -21.77429327 | CV116: -21.8652671 | CW116: -22.33633728 | CX116: -18.0695607 | CZ116: =286.867-15.8271*CS116+0.30502*CS116^2-0.0029229*CS116^3+0.0000164302*CS116^4-5.80497*10^-8*CS116^5+1.32295*10^-10*CS116^6-1.89098*10^-13*CS116^7+1.34034*10^-16*CS116^8 -> -18.35692815
CS117: 300 | CT117: -33.9462 | CU117: -34.260267 | CV117: -34.434205 | CW117: -35.5595 | CX117: -22.9754 | CZ117: =286.867-15.8271*CS117+0.30502*CS117^2-0.0029229*CS117^3+0.0000164302*CS117^4-5.80497*10^-8*CS117^5+1.32295*10^-10*CS117^6-1.89098*10^-13*CS117^7+1.34034*10^-16*CS117^8 -> -22.62086
CS118: 310 | CT118: -47.394448 | CU118: -47.84605851 | CV118: -48.1355772 | CW118: -50.31540094 | CX118: -22.16478683 | CZ118: =286.867-15.8271*CS118+0.30502*CS118^2-0.0029229*CS118^3+0.0000164302*CS118^4-5.80497*10^-8*CS118^5+1.32295*10^-10*CS118^6-1.89098*10^-13*CS118^7+1.34034*10^-16*CS118^8 -> -20.10506096
CS119: 320 | CT119: -61.918032 | CU119: -62.53368333 | CV119: -62.97769702 | CW119: -66.74520896 | CX119: -12.16894231 | CZ119: =286.867-15.8271*CS119+0.30502*CS119^2-0.0029229*CS119^3+0.0000164302*CS119^4-5.80497*10^-8*CS119^5+1.32295*10^-10*CS119^6-1.89098*10^-13*CS119^7+1.34034*10^-16*CS119^8 -> -6.390676348
CS120: 330 | CT120: -77.516952 | CU120: -78.32515698 | CV120: -78.96937582 | CW120: -85.01429059 | CX120: 11.53137488 | CZ120: =286.867-15.8271*CS120+0.30502*CS120^2-0.0029229*CS120^3+0.0000164302*CS120^4-5.80497*10^-8*CS120^5+1.32295*10^-10*CS120^6-1.89098*10^-13*CS120^7+1.34034*10^-16*CS120^8 -> 24.54347073
CS121: 340 | CT121: -94.191208 | CU121: -95.22249498 | CV121: -96.11992298 | CW121: -105.314013 | CX121: 54.68418257 | CZ121: =286.867-15.8271*CS121+0.30502*CS121^2-0.0029229*CS121^3+0.0000164302*CS121^4-5.80497*10^-8*CS121^5+1.32295*10^-10*CS121^6-1.89098*10^-13*CS121^7+1.34034*10^-16*CS121^8 -> 80.71319902
CS122: 350 | CT122: -111.9408 | CU122: -113.2277129 | CV122: -114.4391459 | CW122: -127.8635469 | CX122: 124.4577906 | CZ122: =286.867-15.8271*CS122+0.30502*CS122^2-0.0029229*CS122^3+0.0000164302*CS122^4-5.80497*10^-8*CS122^5+1.32295*10^-10*CS122^6-1.89098*10^-13*CS122^7+1.34034*10^-16*CS122^8 -> 172.5883966
CS123: 360 | CT123: -130.765728 | CU123: -132.3428262 | CV123: -133.9373501 | CW123: -152.9116698 | CX123: 229.6455181 | CZ123: =286.867-15.8271*CS123+0.30502*CS123^2-0.0029229*CS123^3+0.0000164302*CS123^4-5.80497*10^-8*CS123^5+1.32295*10^-10*CS123^6-1.89098*10^-13*CS123^7+1.34034*10^-16*CS123^8 -> 313.6275897
CS124: 370 | CT124: -150.665992 | CU124: -152.5698504 | CV124: -154.6253391 | CW124: -180.7385687 | CX124: 380.8836115 | CZ124: =286.867-15.8271*CS124+0.30502*CS124^2-0.0029229*CS124^3+0.0000164302*CS124^4-5.80497*10^-8*CS124^5+1.32295*10^-10*CS124^6-1.89098*10^-13*CS124^7+1.34034*10^-16*CS124^8 -> 520.8962261
CS125: 380 | CT125: -171.641592 | CU125: -173.9108011 | CV125: -176.5144143 | CW125: -211.6576434 | CX125: 590.8823653 | CZ125: =286.867-15.8271*CS125+0.30502*CS125^2-0.0029229*CS125^3+0.0000164302*CS125^4-5.80497*10^-8*CS125^5+1.32295*10^-10*CS125^6-1.89098*10^-13*CS125^7+1.34034*10^-16*CS125^8 -> 815.7777876
CS126: 390 | CT126: =-130.53+1.93495*CS126-0.00537668*CS126^2 -> -193.692528 | CU126: =-129.042+1.9052*CS126-0.00519676*CS126^2-3.35921*10^-7*CS126^3 -> -196.3676938 | CV126: =-130.516+1.94502*CS126-0.0055729*CS126^2+1.14613*10^-6*CS126^3-2.07515*10^-9*CS126^4 -> -199.6163754 | CW126: =-113.282+1.35985*CS126+0.00195332*CS126^2-0.0000448386*CS126^3+1.32064*10^-7*CS126^4-1.5025*10^-10*CS126^5 -> -246.0173091 | CX126: =227.71-12.5617*CS126+0.228564*CS126^2-0.00193073*CS126^3+8.6186*10^-6*CS126^4-1.97944*10^-8*CS126^5+1.83354*10^-11*CS126^6 -> 874.6704429 | CZ126: =286.867-15.8271*CS126+0.30502*CS126^2-0.0029229*CS126^3+0.0000164302*CS126^4-5.80497*10^-8*CS126^5+1.32295*10^-10*CS126^6-1.89098*10^-13*CS126^7+1.34034*10^-16*CS126^8 -> 1224.787387
CS127: =CS126+10 -> 400 | CT127: -216.8188 | CU127: -219.942544 | CV127: -223.94352 | CW127: -284.2028 | CX127: 1249.8524 | CZ127: =286.867-15.8271*CS127+0.30502*CS127^2-0.0029229*CS127^3+0.0000164302*CS127^4-5.80497*10^-8*CS127^5+1.32295*10^-10*CS127^6-1.89098*10^-13*CS127^7+1.34034*10^-16*CS127^8 -> 1780.49804
CS128: 410 | CT128: -241.020408 | CU128: -244.6373672 | CV128: -249.5086437 | CW128: -326.6379716 | CX128: 1736.879409 | CZ128: =286.867-15.8271*CS128+0.30502*CS128^2-0.0029229*CS128^3+0.0000164302*CS128^4-5.80497*10^-8*CS128^5+1.32295*10^-10*CS128^6-1.89098*10^-13*CS128^7+1.34034*10^-16*CS128^8 -> 2522.590359
CS129: 420 | CT129: -266.297352 | CU129: -270.454179 | CV129: -276.3250401 | CW129: -373.7871042 | CX129: 2359.333185 | CZ129: =286.867-15.8271*CS129+0.30502*CS129^2-0.0029229*CS129^3+0.0000164302*CS129^4-5.80497*10^-8*CS129^5+1.32295*10^-10*CS129^6-1.89098*10^-13*CS129^7+1.34034*10^-16*CS129^8 -> 3499.036925
CS130: 430 | CT130: -292.649632 | CU130: -297.3949949 | CV130: -304.406501 | CW130: -426.1567056 | CX130: 3144.223113 | CZ130: =286.867-15.8271*CS130+0.30502*CS130^2-0.0029229*CS130^3+0.0000164302*CS130^4-5.80497*10^-8*CS130^5+1.32295*10^-10*CS130^6-1.89098*10^-13*CS130^7+1.34034*10^-16*CS130^8 -> 4767.433177
CS131: 440 | CT131: -320.077248 | CU131: -325.4618305 | CV131: -333.7673162 | CW131: -484.2973146 | CX131: 4122.296577 | CZ131: =286.867-15.8271*CS131+0.30502*CS131^2-0.0029229*CS131^3+0.0000164302*CS131^4-5.80497*10^-8*CS131^5+1.32295*10^-10*CS131^6-1.89098*10^-13*CS131^7+1.34034*10^-16*CS131^8 -> 6396.487158
CS132: 450 | CT132: -348.5802 | CU132: -354.6567011 | CV132: -364.4222734 | CW132: -548.8053031 | CX132: 5328.362491 | CZ132: =286.867-15.8271*CS132+0.30502*CS132^2-0.0029229*CS132^3+0.0000164302*CS132^4-5.80497*10^-8*CS132^5+1.32295*10^-10*CS132^6-1.89098*10^-13*CS132^7+1.34034*10^-16*CS132^8 -> 8467.681019
CS133: 460 | CT133: -378.158488 | CU133: -384.9816225 | CV133: -396.3866585 | CW133: -620.3246802 | CX133: 6801.628029 | CZ133: =286.867-15.8271*CS133+0.30502*CS133^2-0.0029229*CS133^3+0.0000164302*CS133^4-5.80497*10^-8*CS133^5+1.32295*10^-10*CS133^6-1.89098*10^-13*CS133^7+1.34034*10^-16*CS133^8 -> 11077.11772
